Workbook

Sheet Serviços
B6: CONSTRUÇÃO DE UM (01) ESPAÇO MULTIEVENTOS, NO ESTADO DE ALAGOAS, EM ÁREA DE ATUAÇÃO DA CODEVASF/5ªSR.
B7: Data Base: SINAPI JULHO/2017 Não Desonerado
B8: PLANILHA ORÇAMENTÁRIA DE SERVIÇOS
B9: TOTAL DOS SERVIÇOS (R$) | H9: BDI | I9: =SUM(I20,I13) -> 190536.96
H10: 22.12
B11: ITEM | C11: COD. | D11: DISCRIMINAÇÃO DOS SERVIÇOS | E11: UNID. | F11: QUANT. | G11: PREÇO (R$)
C12: SINAPI | G12: UNITÁRIO | H12: UNITÁRIO COM BDI | I12: TOTAL
B13: 1 | C13: SERVIÇOS PRELIMINARES E ADMINISTRAÇÃO | I13: =SUM(I14:I19) -> 29808.83
B14: 1.1 | C14: COMP 1 | D14: Mobilização de equipamentos, materiais e pessoal até localidade de realização da obra. | E14: unid. | F14: 1 | G14: =CPU!I28 -> 551.44 | H14: =G14*(1+H10/100) -> 673.42 | I14: =F14*H14 -> 673.42
B15: 1.2 | C15: 74209/001 | D15: Fornecimento e instalação de Placa de identificação de obra com as dimensões de 3,0 m x 2,0 m conforme modelo fornecido pela CODEVASF. | E15: m² | F15: =3*2 -> 6 | G15: 320.53 | H15: =G15*(1+H10/100) -> 391.43 | I15: =F15*H15 -> 2348.58
B16: 1.3 | C16: COMP 2 | D16: Desmobilização de equipamentos, materiais e pessoal do local de realização da obra. | E16: unid. | F16: 1 | G16: =CPU!I57 -> 551.44 | H16: =G16*(1+H10/100) -> 673.42 | I16: 673.42
B17: 1.4 | C17: 93207 | D17: Instalação e montagem do Canteiro de Obras em chapa de madeira compensada, conforme layout apresentado pela contratada e aceito pela fiscalização. | E17: m² | F17: 12 | G17: 599.16 | H17: =G17*(1+H10/100) -> 731.69 | I17: 8780.28
B18: 1.5 | C18: 93212 | D18: Execução de sanitário e vestiário em chapa de madeira compensada | E18: m² | F18: 3 | G18: 566.88 | H18: =G18*(1+H10/100) -> 692.27 | I18: 2076.81
B19: 1.6 | C19: COMP 3 | D19: Administração local, manutenção e conservação do canteiro de obras durante a realização do objeto do contrato. | E19: mês | F19: 6 | G19: =CPU!I90 -> 2082.15 | H19: =G19*(1+H10/100) -> 2542.72 | I19: 15256.32
B20: SERVIÇOS OBJETO DO CONTRATO | I20: =SUM(I21,I40,I44,I55) -> 160728.13
B21: 2 | C21: EXECUÇÃO DE ESPAÇO MULTIEVENTOS | I21: =SUM(I22:I39) -> 116754.85
B22: 2.1 | C22: 73948/016 | D22: Limpeza e raspagem manual do terreno com raspagem superficial | E22: m² | F22: 1200 | G22: 3.31 | H22: =G22*(1+H10/100) -> 4.04 | I22: =F22*H22 -> 4848
B23: 2.2 | C23: 79472 | D23: Regularização de superfícies em terra com motoniveladora | E23: m² | F23: 1200 | G23: 0.42 | H23: =G23*(1+H10/100) -> 0.51 | I23: =F23*H23 -> 612
B24: 2.3 | C24: 74077/002 | D24: Locação convencional de obra, através de gabarito de tabuas corridas pontaletadas, com reaproveitamento de 10 vezes. | E24: m² | F24: 1004.01 | G24: 3.8 | H24: =G24*(1+H10/100) -> 4.64 | I24: =F24*H24 -> 4658.61
B25: 2.4 | C25: 93358 | D25: Escavação manual de cavas e valas de fundação. | E25: m³ | F25: ='Mem. Cálc.'!J18 -> 29.95 | G25: 52.45 | H25: =G25*(1+H10/100) -> 64.05 | I25: 1918.3
B26: 2.5 | C26: 94319 | D26: Aterro compactado manualmente | E26: m³ | F26: ='Mem. Cálc.'!J22 -> 96.25 | G26: 30.58 | H26: =G26*(1+H10/100) -> 37.34 | I26: 3593.98
B27: 2.6 | C27: 93382 | D27: Reaterro manual de valas com compactação mecanizada | E27: m³ | F27: ='Mem. Cálc.'!J23 -> 94.41 | G27: 18.56 | H27: =G27*(1+H10/100) -> 22.67 | I27: 2140.27
B28: 2.7 | C28: 73843/001 | D28: Muro de contenção em concreto ciclópico | E28: m³ | F28: ='Mem. Cálc.'!J87 -> 19.32 | G28: 308.35 | H28: =G28*(1+H10/100) -> 376.56 | I28: 7275.14
B29: 2.8 | C29: 87507 | D29: Alvenaria de vedação de blocos cerâmicos furados na horizontal de 9x14x19 cm (espessura 9cm) com argamassa de preparo em betoneira | E29: m² | F29: ='Mem. Cálc.'!J31 -> 162.98 | G29: 51.32 | H29: =G29*(1+H10/100) -> 62.67 | I29: 10213.96
B30: 2.9 | C30: 87894 | D30: Chapisco aplicado em alvenarias e estruturas de concreto de fachada, com colher de pedreiro, argamassa traço 1:3 | E30: m² | F30: ='Mem. Cálc.'!J44 -> 416.08 | G30: 4.18 | H30: =G30*(1+H10/100) -> 5.1 | I30: 2122.01
B31: 2.10 | C31: 87529 | D31: Massa única, para recebimento de pintura, em argamassa traço 1:2:8, preparo mecânico, preparo manual | E31: m² | F31: ='Mem. Cálc.'!J52 -> 323.32 | G31: 26.17 | H31: =G31*(1+H10/100) -> 31.96 | I31: 10333.31
B32: 2.11 | C32: 6514 | D32: Fornecimento e aplicação de lastro de brita nº 4, com espessura mínima de 3,00 cm, sob o piso da quadra poliesportiva, incluindo transporte, espalhamento e apiloada manualmente | E32: m³ | F32: ='Mem. Cálc.'!J55 -> 20.84 | G32: 98.08 | H32: =G32*(1+H10/100) -> 119.78 | I32: 2496.22
B33: 2.12 | C33: 68333 | D33: Piso em concreto 20MPa, preparo mecânico, espessura 7cm, incluso juntas de dilatação em madeira | E33: m² | F33: ='Mem. Cálc.'!J68 -> 694.55 | G33: 40.64 | H33: =G33*(1+H10/100) -> 49.63 | I33: 34470.52
B34: 2.13 | C34: 85662 | D34: Armação em tela de aço soldada nervurada Q-92, aço CA-60, 4.2 malha 15x15cm | E34: m² | F34: ='Mem. Cálc.'!J72 -> 694.55 | G34: 9.97 | H34: =G34*(1+H10/100) -> 12.18 | I34: 8459.62
B35: 2.14 | C35: 92718 | D35: Concretagem de pilares, fck=25Mpa, inclusive adensamento e acabamento | E35: m³ | F35: ='Mem. Cálc.'!J82 -> 17.82 | G35: 272.5 | H35: =G35*(1+H10/100) -> 332.78 | I35: 5930.14
B36: 2.15 | C36: 92778 | D36: Armação de pilar ou viga de estrutura convencional de concreto armado utilizando aço CA-50 de 10.0mm | E36: kg | F36: 400 | G36: 8.8 | H36: =G36*(1+H10/100) -> 10.75 | I36: 4300
B37: 2.16 | C37: 94991 | D37: Execução de passeio (calçada) em concreto convencional moldado "in loco", traço 1:4:8, preparo mecânico, espessura minima de 4 cm, com acabamento desempenado. | E37: m³ | F37: ='Mem. Cálc.'!J85 -> 12.83 | G37: 359.45 | H37: =G37*(1+H10/100) -> 438.96 | I37: 5631.86
B38: 2.17 | C38: 74202/001 | D38: Laje pre-moldada, sobrecarga 100 kg/m2 E=8cm (arquibancada) | E38: m² | F38: ='Mem. Cálc.'!J91 -> 33 | G38: 66.08 | H38: =G38*(1+H10/100) -> 80.7 | I38: 2663.1
B39: 2.18 | C39: 95624 | D39: Aplicação manual de tinta látex acrílica em superfícies externas | E39: m² | F39: ='Mem. Cálc.'!J99 -> 296.32 | G39: 14.06 | H39: =G39*(1+H10/100) -> 17.17 | I39: 5087.81
B40: 3 | C40: ACESSORIOS DO ESPAÇO MULTIEVENTOS | I40: =SUM(I41:I43) -> 33516.02
B41: 3.1 | C41: 74244/001 | D41: Alambrado estruturado por tubos de aço galvanizado com costura, DIN 2440, diâmetro 2", com tela de arame galvanizado, fio 14 BWG e malha quadrada 5X5CM | E41: m² | F41: ='Mem. Cálc.'!J109 -> 237.69 | G41: 103.79 | H41: =G41*(1+H10/100) -> 126.75 | I41: 30127.21
B42: 3.2 | C42: 74072/003 | D42: Corrimão em tubo de aço galvanizado 1 1/4" com braçadeira | E42: m | F42: ='Mem. Cálc.'!F112 -> 32.58 | G42: 71.43 | H42: =G42*(1+H10/100) -> 87.23 | I42: 2841.95
B43: 3.3 | C43: 73794/001 | D43: Pintura com tinta protetora e acabamento esmalte sobre superfície metálica, 2 demãos | E43: m² | F43: ='Mem. Cálc.'!F115 -> 16.29 | G43: 27.49 | H43: =G43*(1+H10/100) -> 33.57 | I43: 546.86
B44: 4 | C44: INSTALAÇÃO ELETRICA | I44: =SUM(I45:I57) -> 9308.89
B45: 4.1 | C45: 13390 | D45: Refletor redondo em alumínio anodizado para lâmpada vapor de mercúrio/sódio, corpo em alumínio com pintura epoxi, para lâmpada E-27 de 300 W, com suporte redondo e alça regulável para fixação | E45: unid. | F45: =8 -> 8 | G45: 70.18 | H45: =G45*(1+H10/100) -> 85.7 | I45: 685.6
B46: 4.2 | C46: 981 | D46: Cabo de cobre flexível, classe 4 ou 5, isolação em PVC/A, antichama BWF-B, 1 condutor, 450/750 V, seção nominal 4 mm2 | E46: m | F46: =200 -> 200 | G46: 2.08 | H46: =G46*(1+H10/100) -> 2.54 | I46: 508
B47: 4.3 | C47: 2678 | D47: Eletroduto de PVC rígido de 25mm | E47: m | F47: =120 -> 120 | G47: 1.29 | H47: =G47*(1+H10/100) -> 1.58 | I47: 189.6
B48: 4.4 | C48: 3380 | D48: Haste de aterrramento em aço com 3,0m DN 5/8" revestida com baixa camada de cobre, com baixa camada de cobre, com conector tipo grampo | E48: unid. | F48: =2 -> 2 | G48: 30 | H48: =G48*(1+H10/100) -> 36.64 | I48: 73.28
B49: 4.5 | C49: 13393 | D49: Quadro de distribuição com barramento trifásico, de embutir, em chapa de aço galvanizado, para 12 disjuntores 100A | E49: unid. | F49: =1 -> 1 | G49: 181.96 | H49: =G49*(1+H10/100) -> 222.21 | I49: 222.21
B50: 4.6 | C50: 34606 | D50: Disjuntor bipolar 100A | E50: unid. | F50: 6 | G50: 90.81 | H50: =G50*(1+H10/100) -> 110.9 | I50: 665.4
B51: 4.7 | C51: 3279 | D51: Caixa de inspeção em concreto premoldado, circular, com tampa , D = 60 CM, H= 60 CM | E51: unid. | F51: =4 -> 4 | G51: 106.75 | H51: =G51*(1+H10/100) -> 130.36 | I51: 521.44
B52: 4.8 | C52: 5054 | D52: Poste de concreto circular, 100Kg, H = 7 M (NBR 8451) | E52: unid. | F52: =4 -> 4 | G52: 344.24 | H52: =G52*(1+H10/100) -> 420.39 | I52: 1681.56
B53: 4.9 | C53: 34711 | D53: Poste Padrão, 50A, com cabeamento, caixa de proteção para medidor e aterramento | E53: unid. | F53: 1 | G53: 973.12 | H53: =G53*(1+H10/100) -> 1188.37 | I53: =F53*H53 -> 1188.37
B54: 4.10 | C54: COMP 5 | D54: Montagem das instalações elétricas | E54: unid. | F54: 1 | G54: =CPU!I106 -> 1045.44 | H54: =G54*(1+H10/100) -> 1276.69 | I54: =F54*H54 -> 1276.69
B55: 5 | C55: PLACA DE INAUGURAÇÃO | I55: =SUM(I56:I57) -> 1148.37
B56: 5.1 | C56: Cotação | D56: Placa de Inauguração de obra | E56: unid. | F56: 1 | G56: 547.82 | H56: =G56*(1+H10/100) -> 669 | I56: =F56*H56 -> 669
B57: 5.2 | C57: COMP 6 | D57: Estrutura em aço galvanizado para suporte da placa de inauguração | E57: unid. | F57: 1 | G57: 392.54 | H57: =G57*(1+H10/100) -> 479.37 | I57: =F57*H57 -> 479.37

Sheet CPU
B6: CODEVASF | C6: COMP 1 | D6: COMPOSIÇÃO DE PREÇO UNITÁRIO
B7: OBRA: Construção de Espaço Multieventos | H7: Data Base: SINAPI Julho/2017 Não Desonerado
B8: SERVIÇO :Mobilização de equipamentos, materiais e pessoal. | H8: UNIDADE: | I8: unid.
B9: EQUIPAMENTO
B10: DISCRIMINAÇÃO | C10: UNID | D10: QUANT. | E10: PROD | F10: IMPROD | G10: P.UNIT. PROD | H10: P.UNIT. IMPR | I10: P.TOTAL
B11: Sinapi 5824 - CAMINHÃO TOCO, PBT 16.000 KG, CARGA ÚTIL MÁX. 10.685 KG, DIST. ENTRE EIXOS 4,8 M, POTÊNCIA 189 CV, INCLUSIVE CARROCERIA FIXA ABERTA DE MADEIRA P/ TRANSPORTE GERAL DE CARGA SECA, DIMEN. APROX. 2,5 X 7,00 X 0,50 | C11: chp | D11: 4 | G11: 112.86 | I11: =G11*D11 -> 451.44
B12: SUB-TOTAL | I12: =SUM(I11:I11) -> 451.44
B13: MATERIAL
B14: DISCRIMINAÇÃO | C14: UNID | D14: QUANT. | H14: P.UNIT. | I14: P.TOTAL
B15: Passagem de ônibus | C15: unid. | D15: 20 | H15: 5 | I15: =D15*H15 -> 100
B17: SUB-TOTAL | I17: =SUM(I15:I16) -> 100
B18: SERVIÇOS - COMPOSIÇÕES AUXILIARES
B19: DISCRIMINAÇÃO | C19: UNID | D19: QUANT. | H19: P.UNIT. | I19: P.TOTAL
B21: SUB-TOTAL
B22: MÃO DE OBRA
B23: DISCRIMINAÇÃO | C23: UNID | D23: QUANT. | H23: P.UNIT. | I23: P.TOTAL
B26: SUB-TOTAL
B27: PRODUÇÃO DA EQUIPE | C27: 1 | D27: CUSTO | I27: =I26+I21+I17+I12 -> 551.44
B28: TOTAL - R$ | I28: =I27/C27 -> 551.44
B29: BDI | C29: 22.12 | D29: % | I29: =C29/100*I28 -> 121.98
B30: TOTAL DO SERVIÇO - R$ | I30: =I29+I28 -> 673.42
B35: CODEVASF | C35: COMP 2 | D35: COMPOSIÇÃO DE PREÇO UNITÁRIO
B36: OBRA: Construção de Espaço Multieventos | H36: Data Base: SINAPI Julho/2017 Não Desonerado
B37: SERVIÇO : Desmobilização de equipamentos, materiais e pessoal. | H37: UNIDADE: | I37: unid.
B38: EQUIPAMENTO
B39: DISCRIMINAÇÃO | C39: UNID | D39: QUANT. | E39: PROD | F39: IMPROD | G39: P.UNIT. PROD | H39: P.UNIT. IMPR | I39: P.TOTAL
B40: Sinapi 5824 - CAMINHÃO TOCO, PBT 16.000 KG, CARGA ÚTIL MÁX. 10.685 KG, DIST. ENTRE EIXOS 4,8 M, POTÊNCIA 189 CV, INCLUSIVE CARROCERIA FIXA ABERTA DE MADEIRA P/ TRANSPORTE GERAL DE CARGA SECA, DIMEN. APROX. 2,5 X 7,00 X 0,50 | C40: chp | D40: 4 | G40: 112.86 | I40: =G40*D40 -> 451.44
B41: SUB-TOTAL | I41: =SUM(I40:I40) -> 451.44
B42: MATERIAL
B43: DISCRIMINAÇÃO | C43: UNID | D43: QUANT. | H43: P.UNIT. | I43: P.TOTAL
B44: Passagem de ônibus para Petrolina. | C44: unid. | D44: 20 | H44: 5 | I44: =D44*H44 -> 100
B46: SUB-TOTAL | I46: =SUM(I44:I45) -> 100
B47: SERVIÇOS - COMPOSIÇÕES AUXILIARES
B48: DISCRIMINAÇÃO | C48: UNID | D48: QUANT. | H48: P.UNIT. | I48: P.TOTAL
B50: SUB-TOTAL
B51: MÃO DE OBRA
B52: DISCRIMINAÇÃO | C52: UNID | D52: QUANT. | H52: P.UNIT. | I52: P.TOTAL
B55: SUB-TOTAL
B56: PRODUÇÃO DA EQUIPE | C56: 1 | D56: CUSTO | I56: =I55+I50+I46+I41 -> 551.44
B57: TOTAL - R$ | I57: =I56/C56 -> 551.44
B58: BDI | C58: 22.12 | D58: % | I58: =C58/100*I57 -> 121.98
B59: TOTAL DO SERVIÇO - R$ | I59: =I58+I57 -> 673.42
B64: CODEVASF | C64: COMP 3 | D64: COMPOSIÇÃO DE PREÇO UNITÁRIO
B65: OBRA: Construção de Espaço Multieventos | H65: Data Base: SINAPI Julho/2017 Não Desonerado
B66: SERVIÇO : Administração local e manutenção do canteiro de obras. | H66: UNIDADE: | I66: mês
B67: EQUIPAMENTO
B68: DISCRIMINAÇÃO | C68: UNIDADE | D68: QUANT. | E68: PROD | F68: IMPROD | G68: P.UNIT. PROD | H68: P.UNIT. IMPR | I68: P.TOTAL
B69: Veículo comercial leve | C69: mês | D69: 0.5 | G69: 2500 | I69: =D69*G69 -> 1250
B70: SUB-TOTAL | I70: =SUM(I69:I69) -> 1250
B71: MATERIAL
B72: DISCRIMINAÇÃO | C72: UNIDADE | D72: QUANT. | H72: P.UNIT. | I72: P.TOTAL
B73: Kit 1º socorros | C73: mês | D73: 1 | H73: 50 | I73: =D73*H73 -> 50
B74: Material de limpeza | C74: mês | D74: 1 | H74: 60 | I74: =D74*H74 -> 60
B75: EPI | C75: mês | D75: 1 | H75: 100 | I75: =D75*H75 -> 100
B77: SUB-TOTAL | I77: =SUM(I73:I76) -> 210
B78: SERVIÇOS - COMPOSIÇÕES AUXILIARES
B79: DISCRIMINAÇÃO | C79: UNIDADE | D79: QUANT. | H79: P.UNIT. | I79: P.TOTAL
B80: Água | C80: mês | D80: 1 | H80: 50 | I80: =D80*H80 -> 50
B81: Energia | C81: mês | D81: 1 | H81: 150 | I81: =D81*H81 -> 150
B83: SUB-TOTAL | I83: =SUM(I80:I82) -> 200
B84: MÃO DE OBRA
B85: DISCRIMINAÇÃO | C85: UNIDADE | D85: QUANT. | H85: P.UNIT. | I85: P.TOTAL
B86: Engenheiro Junior | C86: h | D86: 5 | H86: 84.43 | I86: =D86*H86 -> 422.15
B88: SUB-TOTAL | I88: =SUM(I86:I87) -> 422.15
B89: PRODUÇÃO DA EQUIPE | C89: 1 | D89: CUSTO | I89: =I70+I77+I83+I88 -> 2082.15
B90: TOTAL - R$ | I90: =I89/C89 -> 2082.15
B91: BDI | C91: 22.12 | D91: % | I91: =C91/100*I90 -> 460.57
B92: TOTAL MÊS - R$ | I92: =I91+I90 -> 2542.72
B93: Nº MESES | I93: 1
B94: TOTAL DO SERVIÇO - R$ | I94: =I92*I93 -> 2542.72 | K94: =I94/Serviços!I9 -> 0.0133450224
B97: CODEVASF | C97: COMP 5 | D97: COMPOSIÇÃO DE PREÇO UNITÁRIO
B98: OBRA: Construção de Espaço Multieventos | H98: Data Base: SINAPI Julho/2017 Não Desonerado
B99: SERVIÇO : Montagem das instalaçõe elétricas | H99: UNIDADE: | I99: unid.
B100: MÃO DE OBRA
B101: DISCRIMINAÇÃO | C101: UNIDADE | D101: QUANT. | H101: P.UNIT. | I101: P.TOTAL
B102: Eletricista | C102: h | D102: 36 | H102: 16.59 | I102: =D102*H102 -> 597.24
B103: Servente | C103: h | D103: 36 | H103: 12.45 | I103: =D103*H103 -> 448.2
B104: SUB-TOTAL | I104: =SUM(I102:I103) -> 1045.44
B105: PRODUÇÃO DA EQUIPE | C105: 1 | D105: CUSTO | I105: =I104 -> 1045.44
B106: TOTAL - R$ | I106: =I105/C105 -> 1045.44
B107: BDI | C107: 22.12 | D107: % | I107: =C107/100*I106 -> 231.25
B108: TOTAL DO SERVIÇO - R$ | I108: =I107+I106 -> 1276.69

Sheet Mem. Cálc.
D1: Ministério da Integração Nacional Companhia de Desenvolvimento dos Vales do São Francisco e do Parnaíba
A3: OBRA: | B3: CONSTRUÇÃO DE UM ESPAÇO MULTIEVENTOS | I3: Composição: Material e mão de obra
A4: LOCAL: | B4: ÁGUA BRANCA- AL. | I4: SINAPI JULHO/2017
A6: MEMÓRIA CÁLCULOS QUANTITATIVOS
A7: DESCRIÇÃO DOS SERVIÇOS | E7: UNID. | F7: CÁLCULO
A8: LOCAÇÃO | E8: M² | F8: COMPRIMENTO | G8: LARGURA | H8: PROFUND. | I8: VEZES | J8: TOTAL
A9: LOCAÇÃO = LIMPEZA DO TERRENO | E9: M² | F9: 37.93 | G9: 26.47 | I9: 1 | J9: =F9*G9*I9 -> 1004.01
A11: ESCAVAÇÃO MANUAL | E11: M³ | F11: EXTENSÃO | G11: LARGURA | H11: PROFUND. | I11: VEZES | J11: VOLUME
A12: ALVENARIA DE PEDRA -CONTORNO CALÇADA | E12: M³ | F12: =37.93+37.93+26.47+26.47 -> 128.8 | G12: 0.25 | H12: 0.25 | J12: =F12*G12*H12 -> 8.05
A14: CINTAMENTO INTERNO = MURETA - ESCAVAÇÃO ( VIGAS) | E14: M³ | F14: =20.47+20.47+33.93+33.93 -> 108.8 | G14: 0.25 | H14: 0.4 | I14: 1 | J14: =F14*G14*H14*I14 -> 10.88
A15: SAPATA (PILARES) - MURETA | E15: M³ | F15: 0.6 | G15: 0.6 | H15: 0.85 | I15: =12+12+6+6 -> 36 | J15: =F15*G15*H15*I15 -> 11.02
A18: TOTAL ESCAVAÇÃO MANUAL | J18: =SUM(J12:J17) -> 29.95
A20: REATERRO e ATERRO | E20: M³ | F20: EXTENSÃO | G20: DESCONTO | H20: PROFUND. | I20: VEZES | J20: VOLUME
A21: VOLUME ESCAV.( -) VOLUME ESTRUTURA (CONCRETO 1:4:8 + CONCRETO 20MPA) | E21: M³ | F21: =J18 -> 29.95 | G21: =J64 -> 31.79 | J21: =F21-G21 -> -1.84
A22: Aterro interno compactado manualmente - calçada | E22: M³ | F22: =F85 -> 320.84 | H22: 0.3 | J22: =F22*H22 -> 96.25
A23: TOTAL REATERRO | J23: =SUM(J21:J22) -> 94.41
A25: ALVENARIA, 1/2 VEZ, EM TIJOLO CERÂMICO | E25: M² | F25: EXTENSÃO | G25: ALTURA | H25: PROFUND. | I25: VEZES | J25: ÁREA
A26: ALVENARIA EM TIJOLO CERÂMICO - MURETA | E26: M² | F26: =20.47+20.47+33.93+33.93 -> 108.8 | G26: 0.85 | I26: 1 | J26: =F26*G26*I26 -> 92.48
A27: ALVENARIA EM TIJOLO CERÂMICO - ARQUIBANCADA | E27: M² | F27: 15 | G27: 0.9 | I27: 2 | J27: =F27*G27*I27 -> 27
A28: ALVENARIA EM TIJOLO CERÂMICO - ARQUIBANCADA | E28: M² | F28: 15 | G28: =0.45+0.45 -> 0.9 | I28: 2 | J28: =F28*G28*I28 -> 27
A29: ALVENARIA EM TIJOLO CERÂMICO - ARQUIBANCADA | E29: M² | F29: 15 | G29: 0.45 | I29: 2 | J29: =F29*G29*I29 -> 13.5
A30: ALVENARIA EM TIJOLO CERÂMICO - ARQUIBANCADA LATERAIS | E30: M² | F30: 0.75 | I30: 4 | J30: =F30*I30 -> 3
A31: TOTAL ALVENARIA EM TIJOLO CERÂMICO | J31: =SUM(J26:J30) -> 162.98
A33: CHAPISCO | E33: M² | F33: EXTENSÃO / ÁREA | G33: LARGURA | H33: PROFUND. | I33: VEZES | J33: ÁREA
A34: ALVENARIA / MURETA | E34: M² | F34: =F26 -> 108.8 | G34: 1.1 | I34: 2 | J34: =F34*G34*I34 -> 239.36
A35: ALVENARIA / ARQUIBANCADA | E35: M² | F35: 15 | G35: 0.9 | I35: 4 | J35: =F35*G35*I35 -> 54
A36: ALVENARIA / ARQUIBANCADA | E36: M² | F36: 15 | G36: =0.45+0.45 -> 0.9 | I36: 4 | J36: =F36*G36*I36 -> 54
A37: ALVENARIA / ARQUIBANCADA | E37: M² | F37: 15 | G37: 0.45 | I37: 4 | J37: =F37*G37*I37 -> 27
A38: ALVENARIA EM TIJOLO CERÂMICO - ARQUIBANCADA LATERAIS | E38: M² | F38: 0.74 | I38: 8 | J38: =F38*I38 -> 5.92
A39: ALVENARIA DE PEDRA -CONTORNO CALÇADA | E39: M² | F39: =F12 -> 128.8 | G39: 0.25 | I39: 1 | J39: =F39*G39*I39 -> 32.2
A40: CINTAMENTO INTERNO - MURETA | E40: M² | F40: 128.6 | G40: 0.3 | I40: 2 | L40: NÃO
A41: SAPATA - MURETA | E41: M² | F41: =F79 -> 0.25 | I41: 36 | L41: NÃO
A42: ARQUIBANCADA - CINTAMENTO | E42: M² | F42: 45 | G42: 0.2 | I42: 2 | L42: NÃO
A43: BASE / BICICLETÁRIO | E43: M² | F43: 2 | G43: 0.3 | I43: 6 | J43: =F43*G43*I43 -> 3.6 | L43: NÃO
A44: TOTAL CHAPISCO | J44: =SUM(J34:J43) -> 416.08
A46: REBOCO | E46: M² | F46: EXTENSÃO | G46: LARGURA | H46: PROFUND. | I46: VEZES | J46: ÁREA
A47: ALVENARIA /DE CONTORNO | E47: M² | F47: =F34 -> 108.8 | G47: =G34 -> 1.1 | I47: 2 | J47: =F47*G47*I47 -> 239.36
A48: ALVENARIA / ARQUIBANCADA | E48: M² | F48: 15 | G48: 0.9 | I48: 2 | J48: =F48*G48*I48 -> 27
A49: ALVENARIA / ARQUIBANCADA | E49: M² | F49: 15 | G49: =0.45+0.45 -> 0.9 | I49: 2 | J49: =F49*G49*I49 -> 27
A50: ALVENARIA / ARQUIBANCADA | E50: M² | F50: 15 | G50: 0.45 | I50: 4 | J50: =F50*G50*I50 -> 27
A51: ALVENARIA EM TIJOLO CERÂMICO - ARQUIBANCADA LATERAIS | E51: M² | F51: 0.74 | I51: 4 | J51: =F51*I51 -> 2.96
A52: TOTAL REBOCO | J52: =SUM(J47:J51) -> 323.32
A54: LASTRO DE BRITA PARA O PISO | E54: M³ | F54: EXTENSÃO | G54: LARGURA | H54: PROFUND. | I54: VEZES | J54: VOLUME
A55: LASTRO DE BRITA 2 OU 3 | E55: M³ | F55: 33.93 | G55: 20.47 | H55: 0.03 | I55: 1 | J55: =F55*G55*H55*I55 -> 20.84
A57: CONCRETO NÃO ESTRUTURAL 1:4:8 | E57: M³ | F57: EXTENSÃO | G57: LARGURA | H57: PROFUND. | I57: VEZES | J57: VOLUME
A58: PERIMETRO CINTAMENTO EXTERNO | E58: M³ | F58: 155.64 | G58: 0.25 | H58: 0.05 | I58: 1 | L58: NÃO
A59: CINTAMENTO INTERNO - MURETA (menos pilares) | E59: M³ | F59: =F14 -> 108.8 | G59: 0.25 | H59: 0.05 | I59: 1 | J59: =F59*G59*H59*I59 -> 1.36 | L59: 0,15*0,50
A60: SAPATA - MURETA | E60: M³ | F60: 0.6 | G60: 0.6 | H60: 0.05 | I60: 36 | J60: =F60*G60*H60*I60 -> 0.65
A61: ARQUIBANCADA | E61: M³ | F61: =45+2.2 -> 47.2 | G61: 0.25 | H61: 0.05 | I61: 2 | J61: =F61*G61*H61*I61 -> 1.18
A62: CONCRETO MAGRO - COMPLEMENTO PISO | E62: M³ | J62: 28
A63: CHUMBAMENTO BASE / BICICLETÁRIO | E63: M³ | F63: 0.5 | G63: 0.5 | H63: 0.4 | I63: 6 | J63: =F63*G63*H63*I63 -> 0.6
A64: TOTAL CONCRETO NÃO ESTRUTURAL | J64: =SUM(J58:J63) -> 31.79
A66: PISO CONCRETO ARMADO FCK=20MPA | E66: M² | F66: EXTENSÃO | G66: LARGURA | H66: PROFUND. | I66: VEZES | J66: ÁREA
A67: PISO EM CONCRETO, e=8cm | E67: M² | F67: 33.93 | G67: 20.47 | I67: 1 | J67: =F67*G67*I67 -> 694.55
A68: TOTAL PISO CONCRETO ARMADO FCK= 20MPA | J68: =SUM(J67) -> 694.55
A70: PISO - MALHA POP DE AÇO, DIAMETRO= 4,2MM - CA 50 | E70: M² | F70: EXTENSÃO | G70: LARGURA | H70: PROFUND. | I70: VEZES | J70: ÁREA
A71: PISO | E71: M² | F71: 33.93 | G71: 20.47 | I71: 1 | J71: =F71*G71*I71 -> 694.55
A72: TOTAL MALHA DE AÇO | J72: =SUM(J71) -> 694.55
N73: =J82+J64 -> 49.61
A74: CONCRETO ARMADO FCK= 20MPA | E74: M³ | F74: EXTENSÃO | G74: LARGURA | H74: PROFUND. | I74: VEZES | J74: VOLUME
A75: ARQUIBANCADA - PILARESTES | E75: M³ | F75: 0.15 | G75: 0.15 | H75: 0.45 | I75: 14 | J75: =F75*G75*H75*I75 -> 0.14 | L75: a cada 2,5
A76: ARQUIBANCADA - PILARESTES | E76: M³ | F76: 0.15 | G76: 0.15 | H76: 0.9 | I76: 14 | J76: =F76*G76*H76*I76 -> 0.28
A77: PERIMETRO CINTAMENTO INFERIO - MURETA | E77: M³ | F77: =F14 -> 108.8 | G77: 0.15 | H77: 0.15 | I77: 1 | J77: 2.45
A78: CINTAMENTO INTERNO - MURETA (menos pilares) | E78: M³ | F78: =F59 -> 108.8 | G78: 0.15 | H78: 0.3 | I78: 1 | J78: 4.9
A79: SAPATA - MURETA | E79: M³ | F79: 0.25 | H79: 0.5 | I79: 36 | J79: =F79*H79*I79 -> 4.5 | L79: PILARES A CADA 3M
A80: PILARETES MURETA | E80: M³ | F80: 0.15 | G80: 0.15 | H80: 1.6 | I80: 36 | J80: =F80*G80*H80*I80 -> 1.3
A81: ARQUIBANCADA - CINTAMENTO | E81: M³ | F81: =45+2.2 -> 47.2 | G81: 0.15 | H81: 0.3 | I81: 2 | J81: 4.25
A82: TOTAL CONCRETO ARMADO | J82: =SUM(J75:J81) -> 17.82
A84: CALÇADA EM CONCRETO 1:4:8 - DESEMPENADO | E84: M³ | F84: ÁREA | G84: LARGURA | H84: DESCONTO | I84: espessura | J84: VOLUME
A85: CALÇADA EM CONCRETO 1:4:8, E=4CM = ÁREA EXTERNA A QUADRA | E85: M³ | F85: 320.84 | I85: 0.04 | J85: =(F85-H85)*I85 -> 12.83 | L85: =F85-H85 -> 320.84
A87: ALVENARIA DE PEDRA ARGAMASSADA | E87: M3 | F87: =F12 -> 128.8 | G87: 0.3 | H87: 0.5 | J87: =F87*G87*H87 -> 19.32
A90: LAJE - ARQUIBANCADA | E90: M² | F90: EXTENSÃO | G90: LARGURA | H90: PROFUND. | I90: VEZES | J90: ÁREA
A91: LAJE PRÉ-MOLDADA | E91: M² | F91: 15 | G91: 1.1 | I91: 2 | J91: =F91*G91*I91 -> 33
A93: PINTURA LATEX ACRILICO | E93: M² | F93: EXTENSÃO | G93: LARGURA | H93: PROFUND. | I93: VEZES | J93: ÁREA
A94: PAREDES - MURETA | E94: M² | F94: =F34 -> 108.8 | H94: 1.1 | I94: 2 | J94: =F94*H94*I94 -> 239.36
A95: PAREDES - ARQUIBANCADA | E95: M² | F95: 15 | H95: 0.9 | I95: 2 | J95: =F95*H95*I95 -> 27
A96: PAREDES - ARQUIBANCADA | E96: M² | F96: 15 | H96: 0.45 | I96: 2 | J96: =F96*H96*I96 -> 13.5
A97: PAREDES - ARQUIBANCADA | E97: M² | F97: 15 | H97: 0.45 | I97: 2 | J97: =F97*H97*I97 -> 13.5
A98: ALVENARIA EM TIJOLO CERÂMICO - ARQUIBANCADA LATERAIS | E98: M² | F98: 0.74 | I98: 4 | J98: =F98*I98 -> 2.96
A99: TOTAL PINTURA LATEX ACRILICO | J99: =SUM(J94:J98) -> 296.32
A101: PINTURA ACRILICA | E101: M² | F101: EXTENSÃO | G101: LARGURA | H101: PROFUND. | I101: VEZES | J101: ÁREA
A102: LAJE PRÉ-MOLDADA | E102: M² | F102: 15 | G102: 1.1 | I102: 2 | J102: =F102*I102 -> 30
A103: DEMARCAÇÃO ACESSO CADEIRANTES | E103: M² | F103: 2.64 | I103: 2 | J103: =F103*I103 -> 5.28
A104: TOTAL PINTURA ACRILICA | J104: =SUM(J102:J103) -> 35.28
A105: FORNECIMENTO E ASSENTAMENTO DE ALAMBRADO | E105: M² | F105: EXTENSÃO | G105: LARGURA | H105: PROFUND. | I105: VEZES | J105: ÁREA
A106: ALAMBRADO - | E106: M² | J106: 237.69
A109: TOTAL ALAMBRADO | J109: =SUM(J106:J108) -> 237.69
A111: CORRIMÃO | E111: M | F111: EXTENSÃO | G111: LARGURA | H111: PROFUND. | I111: VEZES | J111: COMPR.
A112: CORRIMÃO / BICICLETÁRIO | E112: M | F112: 32.58 | J112: =F112 -> 32.58
A114: PINTURA CORRIMÃO | E114: M² | F114: EXTENSÃO | G114: LARGURA | H114: PROFUND. | I114: PI | J114: ÁREA
A115: PINTURA CORRIMÃO / BICICLETÁRIO | E115: M² | F115: 16.29 | G115: 0.0381 | H115: 4 | I115: 3.14 | J115: =F115*G115*H115*I115 -> 7.8
